bitfinex-derivatives/quotes_BTCF0:USTF0_20250905
["timestamp","ask_amount","ask_price","bid_price","bid_amount"]
[1757087671884,2.27055146,110910.0,110900.0,0.002]
[1757087672770,2.26975146,110910.0,110900.0,0.002]
[1757087673086,1.41423146,110910.0,110900.0,0.002]
[1757087673280,2.26931146,110910.0,110900.0,0.002]
[1757087673481,2.26935146,110910.0,110900.0,0.002]
[1757087674879,0.05442,110900.0,110890.0,0.08099514]
[1757087675082,1.15309514,110900.0,110890.0,0.0001]
[1757087676180,1.15409514,110900.0,110890.0,0.0021]
[1757087676380,1.17484001,110900.0,110890.0,0.0021]
[1757087676989,2.02888001,110900.0,110890.0,0.0021]
[1757087677481,0.80590244,110900.0,110890.0,0.0021]
[1757087677687,0.93056487,110900.0,110890.0,0.40389757]
[1757087677990,1.29950244,110900.0,110890.0,0.40389757]
[1757087678189,0.93056487,110900.0,110890.0,0.03496]
[1757087678390,1.29950244,110900.0,110890.0,0.03496]
[1757087679086,1.66844001,110900.0,110890.0,0.03496]
[1757087679479,1.29950244,110900.0,110890.0,0.03496]
[1757087679987,1.29910244,110900.0,110890.0,0.40389757]
[1757087680183,1.29910244,110900.0,110890.0,0.0021]
[1757087680389,2.02884001,110900.0,110890.0,0.0021]
[1757087680783,2.02984001,110900.0,110890.0,0.0031]
[1757087681986,1.17584001,110900.0,110890.0,0.03596]
[1757087682192,0.44610244,110900.0,110890.0,0.40489757]
[1757087682384,1.29950244,110900.0,110890.0,0.40489757]
[1757087682689,1.29950244,110900.0,110890.0,0.4141557]
[1757087682896,2.02924001,110900.0,110890.0,0.03596]
[1757087683486,1.66844001,110900.0,110890.0,0.03596]
[1757087683881,2.02924001,110900.0,110890.0,0.03596]
[1757087684078,2.02924001,110900.0,110890.0,0.0031]
[1757087685992,2.02864001,110900.0,110890.0,0.0031]
[1757087690389,2.64757758,110900.0,110890.0,0.0031]
[1757087690792,2.64757758,110900.0,110880.0,0.0001]
[1757087690793,0.0532,110890.0,110880.0,0.0001]
[1757087690992,0.0532,110890.0,110870.0,0.01805095]
[1757087690993,0.0532,110880.0,110870.0,0.0001]
[1757087691297,0.01963,110870.0,110860.0,1.5001]
[1757087691497,0.74936757,110870.0,110860.0,1.5]
[1757087691692,1.11830514,110870.0,110860.0,1.5]
[1757087692094,1.12725618,110870.0,110860.0,1.5]
[1757087692294,1.11830514,110870.0,110860.0,1.5]
[1757087692593,1.12730612,110870.0,110860.0,1.5]
[1757087692999,1.12730612,110870.0,110860.0,1.57178787]
[1757087693506,0.85116865,110870.0,110860.0,1.57178787]
[1757087693797,1.69640767,110870.0,110860.0,1.57278787]
[1757087694194,0.84516767,110870.0,110860.0,1.57278787]
[1757087694403,1.33648767,110870.0,110860.0,1.57278787]
[1757087694995,1.33648767,110870.0,110860.0,0.07278787]
[1757087695195,1.37005767,110870.0,110860.0,0.10635787]
[1757087696401,1.73085767,110870.0,110860.0,0.07278787]
[1757087698602,0.87973767,110870.0,110860.0,0.10635787]
[1757087698804,1.36945767,110870.0,110860.0,0.10635787]
[1757087699403,1.36949767,110870.0,110860.0,0.10635787]
[1757087700002,0.90776,110870.0,110860.0,0.10635787]
[1757087700303,1.73029767,110870.0,110860.0,0.10635787]
[1757087700705,1.26856,110870.0,110860.0,0.10635787]
[1757087700904,1.36949767,110870.0,110860.0,0.10635787]
[1757087701401,1.73029767,110870.0,110860.0,0.10635787]
[1757087702001,0.0572,110870.0,110860.0,0.35635787]
[1757087702212,0.03757,110870.0,110860.0,1.19869554]
[1757087702397,0.82681,110870.0,110860.0,1.19869554]
[1757087704596,0.84644,110870.0,110860.0,0.48695787]
[1757087705306,0.82681,110870.0,110860.0,0.48695787]
[1757087705502,0.84644,110870.0,110860.0,0.48695787]
[1757087708399,1.30817767,110870.0,110860.0,0.46715787]
[1757087708996,0.84644,110870.0,110860.0,0.46715787]
[1757087713519,1.21571342,110870.0,110860.0,0.83643129]
[1757087715815,0.88497,110870.0,110860.0,1.47511471]
[1757087716115,2.25504684,110870.0,110860.0,0.001]
[1757087716322,2.27699502,110870.0,110860.0,0.001]
[1757087717419,1.90790616,110870.0,110860.0,0.001]
[1757087717809,0.81050616,110870.0,110860.0,0.03314]
[1757087718017,1.65790616,110870.0,110860.0,0.001]
[1757087719934,0.92764818,110870.0,110860.0,0.03314]
[1757087720420,0.08024818,110870.0,110860.0,0.03314]
[1757087720725,1.28844818,110870.0,110860.0,0.03314]
[1757087720927,1.65790616,110870.0,110860.0,0.001]
[1757087721622,1.65790616,110870.0,110860.0,0.03314]
[1757087722424,0.08024818,110870.0,110860.0,0.03314]
[1757087722627,0.05951818,110870.0,110860.0,1.03280798]
[1757087722824,0.90574,110870.0,110860.0,1.01339798]
[1757087723023,0.03757,110870.0,110860.0,1.03280798]
[1757087723327,0.88501,110870.0,110860.0,1.12300678]
[1757087724225,0.88501,110870.0,110860.0,1.03280798]
[1757087726632,0.004,110870.0,110860.0,1.12300678]
[1757087727225,0.03355,110890.0,110880.0,0.05155]
[1757087727436,0.52489,110890.0,110880.0,1.14260798]
[1757087727933,0.29064487,110900.0,110890.0,0.05155]
[1757087728228,0.90185487,110900.0,110890.0,0.78180798]
[1757087729123,0.86840487,110900.0,110890.0,0.87198238]
[1757087729428,0.02084487,110900.0,110890.0,1.21057858]
[1757087729740,0.86944487,110900.0,110890.0,1.22947779]
[1757087729920,0.86944487,110900.0,110890.0,1.23848568]
[1757087730427,0.02184487,110900.0,110890.0,1.14831128]
[1757087730629,0.05529487,110900.0,110890.0,0.4402571]
[1757087731021,0.07702487,110900.0,110890.0,0.4412571]
[1757087731526,0.07702487,110900.0,110890.0,0.4218471]
[1757087731724,0.07602487,110900.0,110890.0,0.4208471]
[1757087731924,0.07702487,110900.0,110890.0,0.4218471]
[1757087732129,0.32702487,110900.0,110890.0,0.01989921]
[1757087733030,0.32702487,110900.0,110890.0,0.05203921]
[1757087733230,0.32702487,110900.0,110890.0,0.05103921]
[1757087733432,0.32702487,110900.0,110890.0,0.01889921]
[1757087733633,0.32702487,110900.0,110890.0,0.05103921]
[1757087734024,0.32702487,110900.0,110890.0,0.01889921]
[1757087734430,0.32702487,110900.0,110890.0,0.05103921]
[1757087734627,1.17426487,110900.0,110890.0,0.05103921]
[1757087734828,1.17426487,110900.0,110890.0,0.01889921]
[1757087735028,1.17426487,110900.0,110890.0,0.05103921]
[1757087735529,0.32702487,110900.0,110890.0,0.01889921]
[1757087735724,1.19525853,110900.0,110890.0,0.001]
[1757087738638,1.19525853,110900.0,110890.0,0.03314]
[1757087739539,0.09801853,110900.0,110890.0,0.03314]
[1757087739739,0.94521853,110900.0,110890.0,0.03314]
[1757087739938,0.94521853,110900.0,110890.0,0.001]
[1757087740440,1.30601853,110900.0,110890.0,0.001]
[1757087740642,2.01407271,110900.0,110890.0,0.001]
[1757087741542,1.55601853,110900.0,110890.0,0.03314]
[1757087741736,0.70881853,110900.0,110890.0,0.001]
[1757087741940,0.94521853,110900.0,110890.0,0.03314]
[1757087742338,0.09801853,110900.0,110890.0,0.03314]
[1757087742537,0.94521853,110900.0,110890.0,0.03314]
[1757087743038,0.09801853,110900.0,110890.0,0.03314]
[1757087743336,0.94521853,110900.0,110890.0,0.03314]
[1757087744243,0.94521853,110900.0,110890.0,0.001]
[1757087745533,1.65327271,110900.0,110890.0,0.001]
[1757087746544,2.01407271,110900.0,110890.0,0.001]
[1757087748548,1.16687271,110900.0,110890.0,0.001]
[1757087748749,2.01403271,110900.0,110890.0,0.001]
[1757087748960,1.16687271,110900.0,110890.0,0.001]
[1757087749150,2.01403271,110900.0,110890.0,0.001]
[1757087749652,1.07802221,110900.0,110890.0,0.001]
[1757087749960,1.92518221,110900.0,110890.0,0.001]
[1757087750452,1.07802221,110900.0,110890.0,0.001]
[1757087750750,1.92518221,110900.0,110890.0,0.001]
[1757087751053,1.67518221,110900.0,110890.0,0.001]
[1757087751249,0.42026368,110890.0,110880.0,0.0002]
[1757087751451,0.05106,110880.0,110870.0,0.37892326]
[1757087751744,0.89822,110880.0,110870.0,0.40973326]
[1757087751952,0.89822,110880.0,110870.0,0.39181]
[1757087752952,1.26742368,110880.0,110870.0,0.39181]
[1757087753454,0.03211,110880.0,110870.0,1.03041368]
[1757087753653,0.87927,110880.0,110870.0,0.66121]
[1757087753848,0.89822,110880.0,110870.0,1.03041368]
[1757087754458,0.05106,110880.0,110870.0,1.03041368]
[1757087754753,0.89822,110880.0,110870.0,1.01101368]
[1757087754953,0.89922,110880.0,110870.0,1.01301368]
[1757087755154,0.90022,110880.0,110870.0,1.01501368]
[1757087755953,0.90022,110880.0,110870.0,0.66521]
[1757087756852,0.90022,110880.0,110870.0,0.64581]
[1757087757654,0.90022,110880.0,110870.0,0.66521]
[1757087758460,0.88127,110880.0,110870.0,1.03441368]
[1757087758642,0.84912,110880.0,110870.0,1.03441368]
[1757087758847,0.002,110880.0,110870.0,1.12460438]
[1757087759048,0.84912,110880.0,110870.0,1.12460438]
[1757087760257,0.84912,110880.0,110870.0,1.14292928]
[1757087760955,0.88123,110880.0,110870.0,1.05273858]
[1757087761346,0.88123,110880.0,110870.0,1.14292938]
[1757087762347,0.88123,110880.0,110870.0,0.89292928]
[1757087762949,0.88123,110880.0,110870.0,0.80273858]
[1757087763450,0.88123,110880.0,110870.0,1.06285897]
[1757087764254,0.88123,110880.0,110870.0,0.98206383]
[1757087764456,0.88123,110880.0,110870.0,1.06285897]
[1757087766956,0.88123,110880.0,110870.0,0.97266817]
[1757087767157,0.88123,110880.0,110870.0,1.06285897]
[1757087767657,0.88123,110880.0,110870.0,0.98206383]
[1757087769451,0.002,110880.0,110870.0,0.98206383]
[1757087769656,0.84896,110880.0,110870.0,1.23206383]
[1757087769857,0.002,110880.0,110870.0,1.23206383]
[1757087771850,0.002,110880.0,110870.0,1.31285897]
[1757087773855,0.002,110880.0,110870.0,2.15977897]
[1757087774060,0.002,110880.0,110870.0,1.31285897]
[1757087774653,0.03411,110880.0,110870.0,0.97266817]
[1757087774962,0.03411,110880.0,110870.0,0.89187303]
[1757087776460,0.03411,110880.0,110870.0,0.98206383]
[1757087777562,0.03244,110880.0,110870.0,1.06589938]
[1757087777762,0.03244,110880.0,110870.0,0.97570858]
[1757087777963,0.03244,110880.0,110870.0,0.89491344]
[1757087778863,0.03244,110880.0,110870.0,0.98510434]
[1757087779564,0.03244,110880.0,110870.0,1.06589948]
[1757087779862,0.002,110880.0,110870.0,1.06589948]
[1757087780362,0.03244,110880.0,110870.0,0.89491344]
[1757087782359,0.03244,110880.0,110870.0,0.98510434]
[1757087782565,0.002,110880.0,110870.0,0.98510434]
[1757087782757,0.002,110880.0,110870.0,1.06589948]
[1757087782962,0.03244,110880.0,110870.0,1.06589948]
[1757087783266,0.002,110880.0,110870.0,1.06589948]
[1757087783466,0.002,110880.0,110870.0,1.3427114]
[1757087783965,0.002,110880.0,110870.0,2.80844663]
[1757087784163,0.04193853,110900.0,110890.0,0.1101647]
[1757087784359,0.04183853,110900.0,110890.0,1.60191516]
[1757087786868,0.04283853,110900.0,110890.0,1.60291516]
[1757087787368,0.07427853,110900.0,110890.0,1.51374046]
[1757087788269,0.07427853,110900.0,110890.0,1.14464523]
[1757087789671,0.34407853,110900.0,110890.0,1.14464523]
[1757087790060,0.36222853,110900.0,110890.0,1.14464523]
[1757087790773,0.34407853,110900.0,110890.0,1.23481983]
[1757087791072,0.34407853,110900.0,110890.0,1.60391506]
[1757087791470,0.34407853,110900.0,110890.0,1.51374046]
[1757087793166,0.34407853,110900.0,110890.0,1.14464523]
[1757087794476,0.34407853,110900.0,110890.0,1.60391516]
[1757087795567,0.07427853,110900.0,110890.0,1.60391516]
[1757087795767,0.07427853,110900.0,110890.0,1.51374046]
[1757087797766,0.05353366,110900.0,110890.0,1.51374046]
[1757087797963,0.05353366,110900.0,110890.0,1.14464523]
[1757087798671,0.05353366,110900.0,110890.0,1.51374046]
[1757087798875,0.05353366,110900.0,110890.0,1.60391516]
[1757087799067,0.02309366,110900.0,110890.0,1.60391516]
[1757087799880,0.02309366,110900.0,110890.0,1.51374046]
[1757087800078,0.02309366,110900.0,110890.0,1.60391516]
[1757087800375,0.04124366,110900.0,110890.0,0.77555]
[1757087800677,0.05353366,110900.0,110890.0,1.14464523]
[1757087800877,0.05353366,110900.0,110890.0,1.23481993]
[1757087800878,0.89969366,110900.0,110890.0,1.23481993]
[1757087801179,0.87866,110900.0,110890.0,1.23481993]
[1757087801772,0.87866,110900.0,110890.0,1.60391516]
[1757087803482,0.0021,110900.0,110890.0,1.60391516]
[1757087804478,0.0021,110900.0,110890.0,3.15984553]
[1757087804669,0.0001,110920.0,110910.0,0.1421084]
[1757087804873,0.89778902,110930.0,110920.0,0.05195]
[1757087805080,0.89778902,110930.0,110920.0,0.79014046]
[1757087805284,0.91639902,110930.0,110920.0,0.79014046]
[1757087805476,1.53549425,110930.0,110920.0,0.03196]
[1757087805778,1.53549425,110930.0,110920.0,0.40105523]
[1757087807076,1.53649425,110930.0,110920.0,0.40205523]
[1757087807277,1.53649425,110930.0,110920.0,0.76285523]
[1757087808281,1.53749425,110930.0,110920.0,0.76385523]
[1757087808584,1.53749425,110930.0,110920.0,0.83421241]
[1757087808990,1.53749425,110930.0,110920.0,0.46511718]
[1757087809282,1.53749425,110930.0,110920.0,0.83421241]
[1757087809486,1.53749425,110930.0,110920.0,0.47341241]
[1757087810981,1.53749425,110930.0,110920.0,0.10431718]
[1757087811187,1.89829425,110930.0,110920.0,0.44145241]
[1757087811678,1.89829425,110930.0,110920.0,0.07235718]
[1757087812378,1.92026753,110930.0,110920.0,0.07235718]
[1757087812682,1.92026753,110930.0,110920.0,0.10361718]
[1757087812876,0.7051323,110930.0,110920.0,0.47271241]
[1757087813085,1.55922753,110930.0,110920.0,0.47271241]
[1757087813384,1.55923492,110930.0,110920.0,0.47271241]
[1757087816383,1.55923492,110930.0,110920.0,0.07235718]
[1757087816384,1.92003492,110930.0,110920.0,0.07235718]
[1757087819786,2.28913015,110930.0,110920.0,0.002]
[1757087819992,0.0509,110920.0,110910.0,0.0001]
[1757087820293,0.0509,110910.0,110900.0,0.41896384]
[1757087820584,1.26555523,110910.0,110900.0,0.02850861]
[1757087821887,1.26655523,110910.0,110900.0,0.02950861]
[1757087822084,1.26655523,110910.0,110900.0,0.10171779]
[1757087822285,1.26755523,110910.0,110900.0,0.08520918]
[1757087823191,1.26855523,110910.0,110900.0,0.08520918]
[1757087823893,1.62935523,110910.0,110900.0,0.08520918]
[1757087824195,1.62935523,110910.0,110900.0,0.08420918]
[1757087825894,1.99845046,110910.0,110900.0,0.08420918]
[1757087826098,1.62935523,110910.0,110900.0,0.08420918]
[1757087826887,1.63845658,110910.0,110900.0,0.08420918]
[1757087827088,2.27948742,110910.0,110900.0,0.002]
[1757087827294,0.0509,110900.0,110890.0,0.0002]
[1757087827493,1.14989046,110900.0,110890.0,0.0001]
[1757087827884,0.41999523,110900.0,110890.0,0.40045523]
[1757087828090,0.03229,110900.0,110890.0,0.41905523]
[1757087828293,0.87769,110900.0,110890.0,1.39895046]
[1757087828495,0.87769,110900.0,110890.0,1.02985523]
[1757087828900,0.87869,110900.0,110890.0,1.03085523]
[1757087829192,0.87869,110900.0,110890.0,1.03185523]
[1757087829695,0.87869,110900.0,110890.0,1.10266427]
[1757087831995,0.03329,110900.0,110890.0,1.5619343]
[1757087832297,0.03329,110900.0,110890.0,1.4717595]
[1757087832500,0.87861,110900.0,110890.0,1.4717595]
[1757087833804,0.84632,110900.0,110890.0,1.5619343]
[1757087834187,0.84632,110900.0,110890.0,1.4717595]
[1757087834391,0.84632,110900.0,110890.0,1.10266427]
[1757087836611,0.87637,110900.0,110890.0,0.73356904]
[1757087836793,0.87637,110900.0,110890.0,1.10266427]
[1757087837193,1.26464523,110900.0,110890.0,0.46496904]
[1757087837389,1.63374046,110900.0,110890.0,0.46496904]
[1757087837597,1.87550028,110900.0,110890.0,0.07290904]
[1757087837798,1.87550028,110900.0,110890.0,0.0021]
[1757087838103,1.94882026,110900.0,110880.0,0.0001]
[1757087838297,1.02918028,110890.0,110880.0,0.0001]
[1757087838493,0.04923,110880.0,110870.0,0.0001]
[1757087838694,0.04923,110870.0,110860.0,0.0001]
[1757087838998,0.04923,110870.0,110850.0,0.08089514]
[1757087838999,0.04923,110860.0,110850.0,0.08089514]
[1757087839210,1.62434028,110860.0,110850.0,0.08079514]
[1757087839394,1.87434028,110860.0,110850.0,0.08079514]
[1757087839800,1.14435,110860.0,110850.0,0.08079514]
[1757087840100,0.87517,110860.0,110850.0,0.86108542]
[1757087840295,0.87517,110860.0,110850.0,0.87009415]
[1757087840503,0.03105,110860.0,110850.0,0.87509415]
[1757087840802,0.87717,110860.0,110850.0,0.79529901]
[1757087841393,0.87717,110860.0,110850.0,0.42614873]
[1757087841709,0.87717,110860.0,110850.0,0.49909038]
[1757087842205,0.87817,110860.0,110850.0,0.49509038]
[1757087844908,0.89735,110860.0,110850.0,0.49509038]
[1757087845706,1.96667612,110860.0,110850.0,0.07494165]
[1757087845900,1.96667612,110860.0,110850.0,0.002]
[1757087853317,1.96667612,110860.0,110840.0,0.0001]
[1757087853318,0.49503,110850.0,110840.0,0.0001]
[1757087853620,0.04923,110840.0,110830.0,0.08089514]
[1757087853809,1.71359612,110840.0,110830.0,0.08079514]
[1757087854214,1.71359612,110840.0,110820.0,0.26619229]
[1757087854422,0.04923,110830.0,110820.0,0.15369059]
[1757087854617,0.50775612,110830.0,110820.0,0.15359059]
[1757087854812,0.52850227,110830.0,110820.0,0.15359059]
[1757087855310,0.06997615,110830.0,110820.0,0.15359059]
[1757087855517,0.88930227,110830.0,110820.0,0.08079514]
[1757087855720,0.88930227,110830.0,110820.0,0.08279514]
[1757087856720,0.88930227,110830.0,110820.0,0.002]
[1757087856924,0.04923,110820.0,110810.0,0.08099514]
[1757087857217,1.71355612,110820.0,110810.0,0.08079514]
[1757087857619,1.70955612,110820.0,110810.0,0.08079514]
[1757087858016,0.86555612,110820.0,110810.0,0.08079514]
[1757087858225,0.01918,110810.0,110800.0,0.79922387]
[1757087858418,0.41003,110810.0,110800.0,0.60572703]
[1757087859419,0.40903,110810.0,110800.0,0.60572703]
[1757087860125,1.25499,110810.0,110800.0,0.60672703]
[1757087860424,0.89423,110810.0,110800.0,0.60672703]
[1757087860617,0.05023,110810.0,110800.0,0.60672703]
[1757087860823,0.89523,110810.0,110800.0,0.98575703]
[1757087861021,0.89523,110810.0,110800.0,0.70575217]
[1757087861223,0.89523,110810.0,110800.0,0.62495703]
[1757087861916,0.89523,110810.0,110800.0,0.57461703]
[1757087862119,0.89523,110810.0,110800.0,0.60672703]
[1757087862318,0.89523,110810.0,110800.0,0.57461703]
[1757087862530,0.89523,110810.0,110800.0,0.60672703]
[1757087863440,1.26495785,110810.0,110800.0,0.60672703]
[1757087864438,1.26495785,110810.0,110800.0,0.57461703]
[1757087865431,1.26495785,110810.0,110800.0,0.60672703]
[1757087865631,1.26495785,110810.0,110800.0,0.68752217]
[1757087865837,1.26491785,110810.0,110800.0,0.68752217]
[1757087866040,1.26491785,110810.0,110800.0,0.60672703]
[1757087866241,1.26491785,110810.0,110800.0,0.57461703]
[1757087866643,1.26491785,110810.0,110800.0,0.62211703]
[1757087867242,1.62571785,110810.0,110800.0,0.6432217]
[1757087867442,1.62571785,110810.0,110800.0,0.69416343]
[1757087867740,1.62571785,110810.0,110800.0,0.501]
[1757087868943,0.78075785,110810.0,110800.0,0.6135017]
[1757087869140,1.25595,110810.0,110800.0,0.6431417]
[1757087869343,1.62567785,110810.0,110800.0,0.6134217]
[1757087869643,0.78075785,110810.0,110800.0,0.6134217]
[1757087869841,1.62563785,110810.0,110800.0,0.6134217]
[1757087872533,1.87563785,110810.0,110800.0,0.6134217]
[1757087873040,1.87563785,110810.0,110800.0,0.50092]
[1757087873535,1.87563785,110810.0,110800.0,0.58163554]
[1757087874448,1.87663785,110810.0,110800.0,0.58163554]
[1757087874848,1.88063785,110810.0,110800.0,0.58163554]
[1757087875640,1.88055785,110810.0,110800.0,0.58163554]
[1757087877147,1.88051785,110810.0,110800.0,0.61135554]
[1757087877338,1.88051785,110810.0,110800.0,0.58163554]
[1757087877536,1.88051785,110810.0,110800.0,0.50092]
[1757087877738,1.51079,110810.0,110800.0,0.50092]
[1757087877943,1.88051785,110810.0,110800.0,0.50092]
[1757087878747,0.78575785,110810.0,110800.0,0.50092]
[1757087878945,1.63055785,110810.0,110800.0,0.61135554]
[1757087880148,1.63055785,110810.0,110800.0,0.58163554]
[1757087880544,0.41603,110810.0,110800.0,0.61135554]
[1757087880846,1.26079,110810.0,110800.0,0.62913554]
[1757087881040,1.26079,110810.0,110800.0,0.61135554]
[1757087881238,1.63051785,110810.0,110800.0,0.53064]
[1757087882250,1.24253,110810.0,110800.0,0.79842]
[1757087882637,1.62949785,110810.0,110800.0,0.50092]
[1757087883555,0.78481785,110810.0,110800.0,0.50092]
[1757087883749,1.62945785,110810.0,110800.0,0.50092]
[1757087884645,0.78481785,110810.0,110800.0,0.50092]
[1757087884852,1.62945785,110810.0,110800.0,0.50092]
[1757087885250,0.78481785,110810.0,110800.0,0.50092]
[1757087885753,1.62941785,110810.0,110800.0,0.50092]
[1757087886654,1.62945785,110810.0,110800.0,0.53064]
[1757087886953,1.62941785,110810.0,110800.0,0.53064]
[1757087887347,0.78481785,110810.0,110800.0,0.53064]
[1757087887547,1.71881851,110810.0,110800.0,0.50092]
[1757087888251,1.71881851,110810.0,110800.0,0.53064]
[1757087888450,0.87421851,110810.0,110800.0,0.53064]
[1757087888753,0.87421851,110810.0,110800.0,0.50092]
[1757087888958,1.71877851,110810.0,110800.0,0.50092]
[1757087890552,1.71877851,110810.0,110800.0,0.53064]
[1757087890749,0.41509,110810.0,110800.0,0.79842]
[1757087891051,1.25961,110810.0,110800.0,0.78064]
[1757087891355,1.74438031,110810.0,110800.0,0.75092]
[1757087891758,1.74438031,110810.0,110800.0,0.78064]
[1757087892456,1.2852518,110810.0,110800.0,0.78064]
[1757087893350,1.74438031,110810.0,110800.0,0.78064]
[1757087894552,1.2852518,110810.0,110800.0,0.78064]
[1757087894756,1.74430031,110810.0,110800.0,0.78064]
[1757087895353,1.74430031,110810.0,110800.0,0.50092]
[1757087895861,1.99430031,110810.0,110800.0,0.50092]
[1757087896154,2.04294487,110810.0,110800.0,0.50092]
[1757087896566,1.58381636,110810.0,110800.0,0.50092]
[1757087896758,2.04294487,110810.0,110800.0,0.50092]
[1757087897361,1.99430031,110810.0,110800.0,0.50092]
[1757087897560,2.04294487,110810.0,110800.0,0.50092]
[1757087898161,2.04294487,110810.0,110800.0,0.48202]
[1757087898363,2.04294487,110810.0,110800.0,0.46328]
[1757087898660,2.04294487,110810.0,110800.0,0.44454]
[1757087898861,2.04294487,110810.0,110800.0,0.42428]
[1757087899562,2.50870848,110810.0,110800.0,0.42428]
[1757087899963,2.50862848,110810.0,110800.0,0.42428]
[1757087900566,2.45998392,110810.0,110790.0,0.0002]
[1757087900770,1.73149212,110800.0,110790.0,0.0002]
[1757087900961,1.73149212,110800.0,110780.0,0.0002]
[1757087900962,0.4458,110790.0,110780.0,0.0002]
[1757087901153,2.13904786,110790.0,110770.0,0.0002]
[1757087901354,0.82324606,110780.0,110770.0,0.0002]
[1757087901576,0.84888786,110780.0,110760.0,0.04789]
[1757087901864,1.20512,110770.0,110760.0,0.04789]
[1757087902064,1.2307618,110770.0,110760.0,0.04769]
[1757087902261,1.69320786,110770.0,110760.0,0.04769]
[1757087902457,0.3864418,110770.0,110760.0,0.04769]
[1757087902658,0.3864418,110770.0,110760.0,0.30683207]
[1757087902659,0.0256418,110770.0,110760.0,0.30683207]
[1757087902860,0.3618,110780.0,110770.0,0.04794]
[1757087903065,0.87062547,110780.0,110770.0,0.04794]
[1757087903570,0.87062547,110780.0,110770.0,1.12118606]
[1757087903777,0.84532,110780.0,110770.0,1.12118606]
[1757087904067,0.84532,110780.0,110770.0,0.29794]
[1757087904263,0.84732,110780.0,110770.0,0.29794]
[1757087904464,0.84632,110780.0,110770.0,0.29794]
[1757087905254,0.003,110780.0,110770.0,0.29794]
[1757087905556,1.11712,110780.0,110770.0,0.29794]
[1757087905758,1.11712,110780.0,110770.0,0.76038606]
[1757087905962,1.11712,110780.0,110770.0,0.29794]
[1757087906270,1.47792,110780.0,110770.0,0.29794]
[1757087906672,1.50321024,110780.0,110770.0,0.04794]
[1757087906973,1.9656563,110780.0,110770.0,0.04794]
[1757087907158,1.50321024,110780.0,110770.0,0.04794]
[1757087907360,1.9656563,110780.0,110770.0,0.04794]
[1757087907864,1.50321024,110780.0,110770.0,0.04794]
[1757087910161,1.14241024,110780.0,110770.0,0.04794]
[1757087910365,1.14241024,110780.0,110770.0,0.29794]
[1757087910366,1.14233024,110780.0,110770.0,0.29794]
[1757087910767,0.29809024,110780.0,110770.0,0.29794]
[1757087911067,0.29809024,110780.0,110770.0,1.12118606]
[1757087911273,0.87249024,110780.0,110770.0,1.12118606]
[1757087911766,0.87249024,110780.0,110770.0,0.76038606]
[1757087912363,0.87249024,110780.0,110770.0,0.29794]
[1757087913771,1.6957363,110780.0,110770.0,0.04794]
[1757087913965,1.6995863,110780.0,110770.0,0.01803]
[1757087914371,1.6995863,110780.0,110760.0,0.01798]
[1757087914670,0.46629606,110770.0,110760.0,0.04789]
[1757087914874,0.02914024,110770.0,110760.0,0.04769]
[1757087915372,0.87372786,110770.0,110760.0,0.01778]
[1757087915568,1.14352786,110770.0,110750.0,0.09047919]
[1757087915771,1.67125606,110760.0,110750.0,0.12038919]
[1757087916074,1.23445522,110760.0,110750.0,0.12018919]
[1757087916282,1.69690128,110760.0,110750.0,0.12018919]
[1757087918277,1.69790128,110760.0,110750.0,0.12018919]
[1757087918870,1.23545522,110760.0,110750.0,0.12018919]
[1757087919069,1.69990128,110760.0,110750.0,0.12018919]
[1757087920270,1.69986128,110760.0,110750.0,0.12018919]
[1757087920980,1.23741522,110760.0,110750.0,0.12018919]
[1757087922877,1.69986128,110760.0,110750.0,0.12018919]
[1757087924081,1.23741522,110760.0,110750.0,0.12018919]
[1757087924780,1.23641522,110760.0,110750.0,0.12018919]
[1757087925476,1.28507977,110760.0,110750.0,0.12018919]
[1757087926079,1.74752583,110760.0,110750.0,0.12018919]
[1757087926374,0.44095977,110760.0,110750.0,0.12018919]
[1757087926575,1.28503977,110760.0,110750.0,0.12018919]
[1757087927178,0.92423977,110760.0,110750.0,0.12018919]
[1757087927379,0.44095977,110760.0,110750.0,0.12018919]
[1757087927570,0.44095977,110760.0,110750.0,0.49025673]
[1757087927777,1.28499977,110760.0,110750.0,0.49025673]
[1757087927977,1.65506731,110760.0,110750.0,0.49025673]
[1757087928480,1.65506731,110760.0,110750.0,0.12018919]
[1757087928680,1.65506731,110760.0,110750.0,0.49025673]
[1757087929381,1.29426731,110760.0,110750.0,0.49025673]
[1757087929586,0.92419977,110760.0,110750.0,0.12018919]
[1757087929780,1.28499977,110760.0,110750.0,0.12018919]
[1757087930481,0.92419977,110760.0,110750.0,0.12018919]
[1757087931187,0.92415977,110760.0,110750.0,0.12018919]
[1757087932081,1.28495977,110760.0,110750.0,0.12018919]
[1757087935084,0.92415977,110760.0,110750.0,0.12018919]
[1757087935290,0.92415977,110760.0,110750.0,0.04794]
[1757087935690,0.08015977,110760.0,110750.0,0.04794]
[1757087935993,0.92403977,110760.0,110750.0,0.04794]
[1757087937094,0.92403977,110760.0,110750.0,0.51049615]
[1757087937294,0.03149522,110760.0,110750.0,0.87129615]
[1757087937492,0.89835455,110760.0,110750.0,0.87129615]
[1757087937694,0.92399977,110760.0,110750.0,0.87129615]
[1757087937895,0.87533522,110760.0,110750.0,0.87129615]
[1757087940089,0.87148522,110760.0,110750.0,0.87129615]
[1757087940396,0.87144522,110760.0,110750.0,1.12129615]
[1757087940589,0.87144522,110760.0,110750.0,1.12029615]
[1757087940785,0.02764522,110760.0,110750.0,1.12029615]
[1757087940989,0.87140522,110760.0,110750.0,1.12029615]
[1757087943583,0.02764522,110760.0,110750.0,1.12029615]
[1757087943782,0.87132522,110760.0,110750.0,0.65774]
[1757087944187,0.87132522,110760.0,110750.0,1.12029615]
[1757087946893,0.87509522,110760.0,110750.0,1.12029615]
[1757087947793,0.87509522,110760.0,110750.0,0.65774]
[1757087947989,0.87509522,110760.0,110750.0,1.12029615]
[1757087949488,0.87504387,110760.0,110750.0,1.12029615]
[1757087950385,0.87107387,110760.0,110750.0,1.21058425]
[1757087951191,0.84548,110760.0,110750.0,1.21058425]
[1757087951493,0.84548,110760.0,110750.0,1.4878342]
[1757087952695,0.84548,110760.0,110750.0,0.7480281]
[1757087952900,0.002,110760.0,110750.0,1.4878342]
[1757087953193,0.41028,110760.0,110750.0,1.4878342]
[1757087953495,0.02134156,110770.0,110750.0,1.4878342]
[1757087953496,0.83699156,110770.0,110760.0,0.05027]
[1757087953695,0.86258369,110770.0,110760.0,1.1508761]
[1757087953897,0.85561369,110770.0,110760.0,1.1508761]
[1757087954396,0.04693369,110770.0,110760.0,1.1508761]